[Event "*** SCC Grand Prix: Titled Tuesday Blitz"]
[Site "Chess.com"]
[Date "2020.06.09"]
[Round "7"]
[White "Escanor89"]
[Black "ftorodent"]
[Result "0-1"]
[WhiteElo "2518"]
[BlackElo "2669"]
[TimeControl "180+1"]
[EndTime "10:18:41 PDT"]
[Termination "ftorodent won by resignation"]

1. c4 {[%clk 0:02:50.4]} 1... f5 {[%clk 0:02:57]} 2. Nc3 {[%clk 0:02:48.4]} 2...
Nf6 {[%clk 0:02:56.8]} 3. g3 {[%clk 0:02:47.4]} 3... g6 {[%clk 0:02:55.4]} 4.
Bg2 {[%clk 0:02:46.3]} 4... Bg7 {[%clk 0:02:55.6]} 5. d4 {[%clk 0:02:43.5]} 5...
O-O {[%clk 0:02:55]} 6. Nf3 {[%clk 0:02:43.6]} 6... d6 {[%clk 0:02:54.5]} 7. O-O
{[%clk 0:02:43.5]} 7... Qe8 {[%clk 0:02:54.5]} 8. b3 {[%clk 0:02:41.9]} 8... e5
{[%clk 0:02:52.2]} 9. Bb2 {[%clk 0:02:32.1]} 9... e4 {[%clk 0:02:48.7]} 10. Ne1
{[%clk 0:02:30.3]} 10... c6 {[%clk 0:02:47.3]} 11. Nc2 {[%clk 0:02:22.8]} 11...
d5 {[%clk 0:02:40.8]} 12. cxd5 {[%clk 0:02:12.1]} 12... cxd5 {[%clk 0:02:40.9]}
13. Ba3 {[%clk 0:02:06.5]} 13... Rf7 {[%clk 0:02:40.3]} 14. Rc1 {[%clk
0:02:03.2]} 14... Be6 {[%clk 0:02:37]} 15. Bd6 {[%clk 0:01:57.3]} 15... Nc6
{[%clk 0:02:12.5]} 16. a4 {[%clk 0:01:49.5]} 16... a6 {[%clk 0:02:09.3]} 17. Nb4
{[%clk 0:01:39.6]} 17... Rc8 {[%clk 0:02:07.9]} 18. Nxc6 {[%clk 0:01:34]} 18...
Rxc6 {[%clk 0:02:07.6]} 19. Ba3 {[%clk 0:01:28.1]} 19... Rfc7 {[%clk 0:01:56.4]}
20. Qd2 {[%clk 0:01:26.6]} 20... Qc8 {[%clk 0:01:54.3]} 21. Nb1 {[%clk
0:00:40.8]} 21... Bf8 {[%clk 0:01:00.5]} 22. Rxc6 {[%clk 0:00:33.9]} 22... Rxc6
{[%clk 0:01:00.2]} 23. Rc1 {[%clk 0:00:32.1]} 23... Rxc1+ {[%clk 0:00:48.2]} 24.
Qxc1 {[%clk 0:00:31.8]} 24... Qxc1+ {[%clk 0:00:47.6]} 25. Bxc1 {[%clk
0:00:30.9]} 25... Kf7 {[%clk 0:00:45.7]} 26. Ba3 {[%clk 0:00:30]} 26... Bxa3
{[%clk 0:00:44.9]} 27. Nxa3 {[%clk 0:00:29.6]} 27... g5 {[%clk 0:00:45.4]} 28.
e3 {[%clk 0:00:29.6]} 28... f4 {[%clk 0:00:43.3]} 29. Nc2 {[%clk 0:00:28.2]}
29... Bg4 {[%clk 0:00:41.5]} 30. Kf1 {[%clk 0:00:15.9]} 30... Bd1 {[%clk
0:00:41]} 31. Na1 {[%clk 0:00:15.8]} 31... f3 {[%clk 0:00:41.1]} 32. Bh1 {[%clk
0:00:14.1]} 32... g4 {[%clk 0:00:38.8]} 33. Ke1 {[%clk 0:00:13.8]} 33... Be2
{[%clk 0:00:39.4]} 34. Nc2 {[%clk 0:00:13.9]} 34... a5 {[%clk 0:00:38.2]} 35.
Na3 {[%clk 0:00:13.4]} 35... Ke7 {[%clk 0:00:37.7]} 36. Kd2 {[%clk 0:00:13.1]}
36... Kd6 {[%clk 0:00:37]} 37. Kc3 {[%clk 0:00:13.1]} 37... Nd7 {[%clk
0:00:36.4]} 38. Kb2 {[%clk 0:00:13.3]} 38... Kc6 {[%clk 0:00:35.4]} 39. Nb1
{[%clk 0:00:13.3]} 39... Bd3 {[%clk 0:00:34.2]} 40. Nc3 {[%clk 0:00:13.2]} 40...
b5 {[%clk 0:00:34.1]} 41. Na2 {[%clk 0:00:10.8]} 41... Nb6 {[%clk 0:00:33.4]}
42. Nc3 {[%clk 0:00:08.7]} 42... Bf1 {[%clk 0:00:33.1]} 0-1

[Event "*** SCC Grand Prix: Titled Tuesday Blitz"]
[Site "Chess.com"]
[Date "2020.06.09"]
[Round "7"]
[White "Nikolaj_6"]
[Black "froylanajedrez"]
[Result "1-0"]
[WhiteElo "2560"]
[BlackElo "2333"]
[TimeControl "180+1"]
[EndTime "10:18:41 PDT"]
[Termination "Nikolaj_6 won by checkmate"]

1. e4 {[%clk 0:03:00.9]} 1... c5 {[%clk 0:02:58.8]} 2. Nf3 {[%clk 0:03:00.6]}
2... Nc6 {[%clk 0:02:57.7]} 3. Bb5 {[%clk 0:02:59.9]} 3... g6 {[%clk 0:02:56.8]}
4. Bxc6 {[%clk 0:02:59.7]} 4... dxc6 {[%clk 0:02:57.1]} 5. O-O {[%clk
0:02:59.6]} 5... Bg7 {[%clk 0:02:56.4]} 6. h3 {[%clk 0:02:59.8]} 6... Nf6 {[%clk
0:02:55.3]} 7. d3 {[%clk 0:03:00]} 7... Nd7 {[%clk 0:02:54.7]} 8. Nbd2 {[%clk
0:02:59.8]} 8... e5 {[%clk 0:02:49.2]} 9. a3 {[%clk 0:02:59.3]} 9... Nf8 {[%clk
0:02:48]} 10. b4 {[%clk 0:02:59.3]} 10... Ne6 {[%clk 0:02:43.9]} 11. Bb2 {[%clk
0:02:37.1]} 11... Qc7 {[%clk 0:02:40.6]} 12. Nc4 {[%clk 0:02:33.4]} 12... f6
{[%clk 0:02:28.6]} 13. Bc1 {[%clk 0:02:23.9]} 13... O-O {[%clk 0:02:20.1]} 14.
Be3 {[%clk 0:02:23.5]} 14... b5 {[%clk 0:01:51.9]} 15. Na5 {[%clk 0:02:19]}
15... f5 {[%clk 0:01:44]} 16. Re1 {[%clk 0:02:11.1]} 16... f4 {[%clk 0:01:40.2]}
17. Bd2 {[%clk 0:02:08.9]} 17... g5 {[%clk 0:00:49.1]} 18. Nb3 {[%clk
0:02:00.3]} 18... c4 {[%clk 0:00:41]} 19. dxc4 {[%clk 0:01:57.5]} 19... Rd8
{[%clk 0:00:34.9]} 20. c5 {[%clk 0:01:35.8]} 20... Qe7 {[%clk 0:00:27.9]} 21.
Nh2 {[%clk 0:01:29.8]} 21... Nd4 {[%clk 0:00:26.1]} 22. Nxd4 {[%clk 0:01:28.2]}
22... Rxd4 {[%clk 0:00:26.5]} 23. Qe2 {[%clk 0:01:27.1]} 23... Be6 {[%clk
0:00:24.3]} 24. Red1 {[%clk 0:01:22.4]} 24... Rad8 {[%clk 0:00:23.3]} 25. Bc3
{[%clk 0:01:17.4]} 25... Bc4 {[%clk 0:00:20.9]} 26. Qe1 {[%clk 0:01:16.3]} 26...
R4d7 {[%clk 0:00:17.7]} 27. Rxd7 {[%clk 0:01:11.7]} 27... Qxd7 {[%clk
0:00:18.6]} 28. Nf3 {[%clk 0:01:03.4]} 28... Qe7 {[%clk 0:00:14]} 29. Rd1 {[%clk
0:01:02.7]} 29... Rf8 {[%clk 0:00:11]} 30. Rd6 {[%clk 0:00:59.5]} 30... h5
{[%clk 0:00:10.2]} 31. Qd2 {[%clk 0:00:31.6]} 31... g4 {[%clk 0:00:09.7]} 32.
hxg4 {[%clk 0:00:30.2]} 32... hxg4 {[%clk 0:00:10.6]} 33. Rd7 {[%clk 0:00:29.9]}
33... Qe6 {[%clk 0:00:07]} 34. Rxg7+ {[%clk 0:00:28.7]} 34... Kxg7 {[%clk
0:00:05.4]} 35. Nxe5 {[%clk 0:00:28.9]} 35... Kg8 {[%clk 0:00:04.5]} 36. Qd4
{[%clk 0:00:24.9]} 36... Rf6 {[%clk 0:00:03]} 37. Nxc4 {[%clk 0:00:21.5]} 37...
Rh6 {[%clk 0:00:01.8]} 38. Qg7# {[%clk 0:00:21]} 1-0

[Event "*** SCC Grand Prix: Titled Tuesday Blitz"]
[Site "Chess.com"]
[Date "2020.06.09"]
[Round "7"]
[White "earling8018"]
[Black "pooh2012"]
[Result "0-1"]
[WhiteElo "2082"]
[BlackElo "2420"]
[TimeControl "180+1"]
[EndTime "10:18:43 PDT"]
[Termination "pooh2012 won on time"]

1. d4 {[%clk 0:03:00.9]} 1... Nf6 {[%clk 0:02:54.3]} 2. c4 {[%clk 0:03:00.1]}
2... e6 {[%clk 0:02:54.1]} 3. Nf3 {[%clk 0:02:59.6]} 3... c5 {[%clk 0:02:53.6]}
4. Nc3 {[%clk 0:02:57.4]} 4... cxd4 {[%clk 0:02:52.9]} 5. Nxd4 {[%clk
0:02:57.5]} 5... Bb4 {[%clk 0:02:51.4]} 6. Bd2 {[%clk 0:02:51.9]} 6... O-O
{[%clk 0:02:50.2]} 7. e3 {[%clk 0:02:48.9]} 7... Nc6 {[%clk 0:02:42.2]} 8. Bd3
{[%clk 0:02:47.9]} 8... Nxd4 {[%clk 0:02:34.3]} 9. exd4 {[%clk 0:02:47.2]} 9...
d5 {[%clk 0:02:26.7]} 10. c5 {[%clk 0:02:29.2]} 10... Re8 {[%clk 0:02:08.4]} 11.
O-O {[%clk 0:02:27.6]} 11... e5 {[%clk 0:02:03.8]} 12. Nb5 {[%clk 0:01:51.7]}
12... Bxd2 {[%clk 0:01:58.3]} 13. Qxd2 {[%clk 0:01:51.9]} 13... exd4 {[%clk
0:01:48.6]} 14. Nxd4 {[%clk 0:01:49]} 14... Qc7 {[%clk 0:01:41.9]} 15. b4 {[%clk
0:01:46.7]} 15... a6 {[%clk 0:01:40.1]} 16. Rfe1 {[%clk 0:01:43.7]} 16... Bd7
{[%clk 0:01:34]} 17. h3 {[%clk 0:01:26.5]} 17... Ne4 {[%clk 0:01:13.5]} 18. Qc2
{[%clk 0:01:12.9]} 18... Bc6 {[%clk 0:00:56]} 19. a4 {[%clk 0:00:58.3]} 19...
Nf6 {[%clk 0:00:23.9]} 20. Nf5 {[%clk 0:00:53.4]} 20... Qf4 {[%clk 0:00:17.8]}
21. Qb2 {[%clk 0:00:38.1]} 21... Bd7 {[%clk 0:00:12.8]} 22. Nd6 {[%clk
0:00:36.3]} 22... Rxe1+ {[%clk 0:00:12.5]} 23. Rxe1 {[%clk 0:00:36.9]} 23... b6
{[%clk 0:00:13]} 24. Qe5 {[%clk 0:00:32.6]} 24... Qxe5 {[%clk 0:00:11.5]} 25.
Rxe5 {[%clk 0:00:33.2]} 25... bxc5 {[%clk 0:00:11.9]} 26. bxc5 {[%clk
0:00:32.8]} 26... Bxa4 {[%clk 0:00:12.5]} 27. Nf5 {[%clk 0:00:13.8]} 27... Bd7
{[%clk 0:00:07.3]} 28. Nd4 {[%clk 0:00:13]} 28... a5 {[%clk 0:00:05.8]} 29. c6
{[%clk 0:00:13.1]} 29... Be6 {[%clk 0:00:06.2]} 30. Re1 {[%clk 0:00:04.4]} 30...
a4 {[%clk 0:00:06.2]} 0-1

[Event "*** SCC Grand Prix: Titled Tuesday Blitz"]
[Site "Chess.com"]
[Date "2020.06.09"]
[Round "7"]
[White "isainz"]
[Black "goofypenguin96"]
[Result "0-1"]
[WhiteElo "2160"]
[BlackElo "2308"]
[TimeControl "180+1"]
[EndTime "10:18:45 PDT"]
[Termination "goofypenguin96 won on time"]

1. e4 {[%clk 0:03:00.9]} 1... e6 {[%clk 0:03:00.2]} 2. d4 {[%clk 0:03:00.4]}
2... d5 {[%clk 0:03:00.3]} 3. e5 {[%clk 0:03:00.8]} 3... c5 {[%clk 0:02:59.8]}
4. c3 {[%clk 0:03:01.2]} 4... Nc6 {[%clk 0:03:00.1]} 5. Nf3 {[%clk 0:03:01.5]}
5... Bd7 {[%clk 0:03:00.3]} 6. a3 {[%clk 0:02:58.7]} 6... f6 {[%clk 0:03:00.6]}
7. Bd3 {[%clk 0:02:53.4]} 7... g6 {[%clk 0:02:59]} 8. O-O {[%clk 0:02:51.9]}
8... c4 {[%clk 0:02:57]} 9. Bc2 {[%clk 0:02:50.5]} 9... Bg7 {[%clk 0:02:57.4]}
10. Re1 {[%clk 0:02:46.3]} 10... Nge7 {[%clk 0:02:55]} 11. Bf4 {[%clk
0:02:30.6]} 11... O-O {[%clk 0:02:53.7]} 12. Bg3 {[%clk 0:02:13.2]} 12... f5
{[%clk 0:02:48.8]} 13. Bf4 {[%clk 0:02:07.4]} 13... h6 {[%clk 0:02:48.7]} 14. h4
{[%clk 0:02:05.8]} 14... Kh7 {[%clk 0:02:46.5]} 15. g3 {[%clk 0:01:59]} 15... a5
{[%clk 0:02:44]} 16. Kg2 {[%clk 0:01:57.8]} 16... b5 {[%clk 0:02:43.8]} 17. Rh1
{[%clk 0:01:56.5]} 17... b4 {[%clk 0:02:41.1]} 18. axb4 {[%clk 0:01:53.6]} 18...
axb4 {[%clk 0:02:40.6]} 19. Rxa8 {[%clk 0:01:53.7]} 19... Qxa8 {[%clk
0:02:41.5]} 20. Qd2 {[%clk 0:01:46.6]} 20... b3 {[%clk 0:02:37]} 21. Bd1 {[%clk
0:01:42.4]} 21... Qe8 {[%clk 0:02:33.5]} 22. Na3 {[%clk 0:01:23]} 22... Nd8
{[%clk 0:02:28.5]} 23. Qe3 {[%clk 0:01:15.6]} 23... Nf7 {[%clk 0:02:26.7]} 24.
Nb1 {[%clk 0:01:14.8]} 24... h5 {[%clk 0:02:24.4]} 25. Nbd2 {[%clk 0:01:11.8]}
25... Nc6 {[%clk 0:02:22.9]} 26. Ng5+ {[%clk 0:01:09.4]} 26... Nxg5 {[%clk
0:02:21.5]} 27. Bxg5 {[%clk 0:01:08.7]} 27... Qa8 {[%clk 0:02:18.8]} 28. Bf3
{[%clk 0:01:04.5]} 28... Qe8 {[%clk 0:02:14]} 29. Qe2 {[%clk 0:01:03.6]} 29...
Qf7 {[%clk 0:02:13.6]} 30. Nf1 {[%clk 0:00:51.5]} 30... Bh6 {[%clk 0:02:07.3]}
31. Bxh6 {[%clk 0:00:46.5]} 31... Kxh6 {[%clk 0:02:08.2]} 32. Qd2+ {[%clk
0:00:31.4]} 32... Kh7 {[%clk 0:02:07.6]} 33. Ne3 {[%clk 0:00:31.4]} 33... f4
{[%clk 0:01:53]} 34. gxf4 {[%clk 0:00:31.5]} 34... Qxf4 {[%clk 0:01:53.9]} 35.
Rh3 {[%clk 0:00:29.8]} 35... Ne7 {[%clk 0:01:51.6]} 36. Qd1 {[%clk 0:00:21]}
36... Rg8 {[%clk 0:01:42]} 37. Qa1 {[%clk 0:00:17.7]} 37... Nf5 {[%clk
0:01:38.2]} 38. Nxf5 {[%clk 0:00:17]} 38... gxf5+ {[%clk 0:01:39.1]} 39. Rg3
{[%clk 0:00:14.9]} 39... Qxh4 {[%clk 0:01:31.2]} 40. Qa7 {[%clk 0:00:13.4]}
40... Qe7 {[%clk 0:01:23.8]} 41. Rxg8 {[%clk 0:00:12.9]} 41... Kxg8 {[%clk
0:01:24.7]} 42. Bxh5 {[%clk 0:00:12.8]} 42... Qg5+ {[%clk 0:01:17.1]} 43. Kf1
{[%clk 0:00:12.3]} 43... Qc1+ {[%clk 0:01:16.9]} 44. Kg2 {[%clk 0:00:11.7]}
44... Qg5+ {[%clk 0:01:15.6]} 45. Kf1 {[%clk 0:00:11.7]} 45... Qe7 {[%clk
0:01:15.6]} 46. Qb8+ {[%clk 0:00:10.3]} 46... Kg7 {[%clk 0:01:15.1]} 47. Qc7
{[%clk 0:00:09.7]} 47... f4 {[%clk 0:01:14]} 48. Bg4 {[%clk 0:00:08.4]} 48...
Kf7 {[%clk 0:01:12.8]} 49. f3 {[%clk 0:00:08.5]} 49... Kf8 {[%clk 0:01:11.2]}
50. Qb8+ {[%clk 0:00:08.2]} 50... Kg7 {[%clk 0:01:08.9]} 51. Qc7 {[%clk
0:00:07.3]} 51... Qf7 {[%clk 0:01:07.4]} 52. Qd8 {[%clk 0:00:05.9]} 52... Be8
{[%clk 0:01:04.9]} 53. Qg5+ {[%clk 0:00:05.3]} 53... Kf8 {[%clk 0:01:04]} 54.
Qh6+ {[%clk 0:00:04.7]} 54... Ke7 {[%clk 0:01:03.9]} 55. Qg5+ {[%clk 0:00:04.5]}
55... Kd7 {[%clk 0:01:03.6]} 0-1

[Event "*** SCC Grand Prix: Titled Tuesday Blitz"]
[Site "Chess.com"]
[Date "2020.06.09"]
[Round "7"]
[White "von_Eschenbach"]
[Black "pavelalexandru07"]
[Result "0-1"]
[WhiteElo "2294"]
[BlackElo "2168"]
[TimeControl "180+1"]
[EndTime "10:18:47 PDT"]
[Termination "pavelalexandru07 won on time"]

1. e4 {[%clk 0:02:54.8]} 1... c5 {[%clk 0:02:59.5]} 2. Nf3 {[%clk 0:02:53.6]}
2... d6 {[%clk 0:02:59.3]} 3. d4 {[%clk 0:02:53.8]} 3... cxd4 {[%clk 0:02:59]}
4. Nxd4 {[%clk 0:02:54.7]} 4... Nf6 {[%clk 0:02:58.8]} 5. Nc3 {[%clk 0:02:54]}
5... a6 {[%clk 0:02:58.8]} 6. f3 {[%clk 0:02:50.1]} 6... e5 {[%clk 0:02:58.3]}
7. Nb3 {[%clk 0:02:49.3]} 7... Be6 {[%clk 0:02:58.4]} 8. Be3 {[%clk 0:02:47.2]}
8... h5 {[%clk 0:02:57.9]} 9. Qd2 {[%clk 0:02:44.6]} 9... Nbd7 {[%clk
0:02:57.1]} 10. O-O-O {[%clk 0:02:42.1]} 10... Be7 {[%clk 0:02:56.5]} 11. Nd5
{[%clk 0:02:31.5]} 11... Nxd5 {[%clk 0:02:55.4]} 12. exd5 {[%clk 0:02:31.2]}
12... Bf5 {[%clk 0:02:55.7]} 13. Bd3 {[%clk 0:02:30.1]} 13... Bxd3 {[%clk
0:02:55.4]} 14. Qxd3 {[%clk 0:02:30.2]} 14... Bg5 {[%clk 0:02:55.5]} 15. Kb1
{[%clk 0:02:26.2]} 15... Bxe3 {[%clk 0:02:54.5]} 16. Qxe3 {[%clk 0:02:26.4]}
16... O-O {[%clk 0:02:49.1]} 17. h4 {[%clk 0:02:24.2]} 17... Nf6 {[%clk
0:02:41.4]} 18. Rhg1 {[%clk 0:02:13.1]} 18... a5 {[%clk 0:02:08.2]} 19. g4
{[%clk 0:02:06]} 19... hxg4 {[%clk 0:02:08.3]} 20. fxg4 {[%clk 0:02:05.1]} 20...
a4 {[%clk 0:02:08.6]} 21. Nc1 {[%clk 0:02:04.7]} 21... Qa5 {[%clk 0:02:05.6]}
22. g5 {[%clk 0:01:48.8]} 22... Nxd5 {[%clk 0:01:56.7]} 23. Qe4 {[%clk
0:01:48.7]} 23... Ne7 {[%clk 0:01:46]} 24. Rxd6 {[%clk 0:01:44.8]} 24... a3
{[%clk 0:01:33.9]} 25. Nb3 {[%clk 0:01:30.7]} 25... Qc7 {[%clk 0:01:30.6]} 26.
Rf6 {[%clk 0:00:43.5]} 26... axb2 {[%clk 0:01:12.5]} 27. Rf3 {[%clk 0:00:20.5]}
27... b5 {[%clk 0:01:06.8]} 28. Kxb2 {[%clk 0:00:14.6]} 28... Qa7 {[%clk
0:00:41.7]} 29. Ra1 {[%clk 0:00:14.2]} 29... Qa3+ {[%clk 0:00:40.1]} 30. Kb1
{[%clk 0:00:13]} 30... Rfd8 {[%clk 0:00:38.9]} 31. Nc1 {[%clk 0:00:12.1]} 31...
Qc5 {[%clk 0:00:33.1]} 32. Kb2 {[%clk 0:00:08.3]} 32... Nc6 {[%clk 0:00:27.1]}
33. a3 {[%clk 0:00:07.7]} 33... Rd4 {[%clk 0:00:26.7]} 34. Qe3 {[%clk
0:00:06.4]} 34... Na5 {[%clk 0:00:24.1]} 35. Nb3 {[%clk 0:00:05.7]} 35... Nc4+
{[%clk 0:00:23.6]} 36. Kc1 {[%clk 0:00:03.5]} 36... Rxa3 {[%clk 0:00:21.1]} 0-1

[Event "*** SCC Grand Prix: Titled Tuesday Blitz"]
[Site "Chess.com"]
[Date "2020.06.09"]
[Round "7"]
[White "Hikaru"]
[Black "QuintilianoR"]
[Result "1-0"]
[WhiteElo "3223"]
[BlackElo "2660"]
[TimeControl "180+1"]
[EndTime "10:18:48 PDT"]
[Termination "Hikaru won by resignation"]

1. Nf3 {[%clk 0:03:00.9]} 1... Nf6 {[%clk 0:03:00]} 2. b3 {[%clk 0:03:00.8]}
2... e6 {[%clk 0:03:00.4]} 3. Bb2 {[%clk 0:03:01.1]} 3... d5 {[%clk 0:03:00.7]}
4. e3 {[%clk 0:02:58.9]} 4... Be7 {[%clk 0:03:00.6]} 5. d4 {[%clk 0:02:58.9]}
5... O-O {[%clk 0:03:00.2]} 6. c4 {[%clk 0:02:59.1]} 6... b6 {[%clk 0:02:59.5]}
7. cxd5 {[%clk 0:02:59.3]} 7... exd5 {[%clk 0:02:58.9]} 8. Bd3 {[%clk
0:02:59.3]} 8... Bb7 {[%clk 0:02:58.4]} 9. O-O {[%clk 0:02:59.6]} 9... Nbd7
{[%clk 0:02:58.4]} 10. Nc3 {[%clk 0:02:59.9]} 10... c5 {[%clk 0:02:56.8]} 11.
dxc5 {[%clk 0:03:00.7]} 11... bxc5 {[%clk 0:02:56.6]} 12. Rc1 {[%clk 0:02:58.5]}
12... Rc8 {[%clk 0:02:54.9]} 13. Bf5 {[%clk 0:02:54.9]} 13... Bc6 {[%clk
0:02:38]} 14. Ne2 {[%clk 0:02:51.7]} 14... Rc7 {[%clk 0:02:32.6]} 15. Nf4 {[%clk
0:02:48.6]} 15... Nb6 {[%clk 0:02:03.3]} 16. Bxf6 {[%clk 0:02:37.5]} 16... Bxf6
{[%clk 0:02:00.8]} 17. Rxc5 {[%clk 0:02:37.4]} 17... d4 {[%clk 0:01:41.4]} 18.
Nxd4 {[%clk 0:02:19.3]} 18... Bxg2 {[%clk 0:01:39.7]} 19. Bxh7+ {[%clk
0:01:49.2]} 19... Kxh7 {[%clk 0:01:35.6]} 20. Rh5+ {[%clk 0:01:49.3]} 20... Kg8
{[%clk 0:01:33.8]} 21. Kxg2 {[%clk 0:01:50.2]} 21... Rd7 {[%clk 0:01:30]} 22.
Qf3 {[%clk 0:01:44]} 22... g6 {[%clk 0:01:21.6]} 23. Nc6 {[%clk 0:01:43.4]}
23... Qa8 {[%clk 0:01:15.5]} 24. Rc5 {[%clk 0:01:41.7]} 24... Rc7 {[%clk
0:00:55.8]} 25. Rfc1 {[%clk 0:01:39.7]} 25... Kg7 {[%clk 0:00:48]} 26. Nd4
{[%clk 0:01:27.4]} 26... Rxc5 {[%clk 0:00:47.6]} 27. Rxc5 {[%clk 0:01:24.2]}
27... Qe8 {[%clk 0:00:38.4]} 28. Nf5+ {[%clk 0:01:13]} 28... Kg8 {[%clk
0:00:33.1]} 29. Ng3 {[%clk 0:01:12.3]} 29... Qe7 {[%clk 0:00:29]} 30. Rc6 {[%clk
0:01:11.2]} 30... Be5 {[%clk 0:00:26.8]} 31. Qe4 {[%clk 0:01:10.9]} 31... Re8
{[%clk 0:00:23.9]} 32. Nd5 {[%clk 0:01:08.1]} 32... Nxd5 {[%clk 0:00:23.5]} 33.
Qxd5 {[%clk 0:01:09]} 33... Kg7 {[%clk 0:00:21]} 34. a4 {[%clk 0:01:05.9]} 34...
Qh4 {[%clk 0:00:20.4]} 35. Rc4 {[%clk 0:01:02.8]} 35... Qf6 {[%clk 0:00:19.2]}
36. Re4 {[%clk 0:01:01.1]} 36... Re6 {[%clk 0:00:18.3]} 37. b4 {[%clk
0:01:00.2]} 37... Qe7 {[%clk 0:00:17.1]} 38. f4 {[%clk 0:00:58.7]} 38... Bc3
{[%clk 0:00:14.8]} 39. b5 {[%clk 0:00:57.6]} 39... Rxe4 {[%clk 0:00:12.7]} 40.
Nxe4 {[%clk 0:00:58.4]} 40... Bb2 {[%clk 0:00:13]} 41. a5 {[%clk 0:00:53.7]}
41... Qb4 {[%clk 0:00:12.4]} 42. Ng5 {[%clk 0:00:47.2]} 42... Qe7 {[%clk
0:00:11.7]} 43. Kf3 {[%clk 0:00:46.7]} 43... Bf6 {[%clk 0:00:11.7]} 44. Ne4
{[%clk 0:00:47.1]} 44... Bb2 {[%clk 0:00:11.8]} 45. b6 {[%clk 0:00:42.8]} 45...
axb6 {[%clk 0:00:11.6]} 46. axb6 {[%clk 0:00:43.7]} 46... Qb4 {[%clk 0:00:11.2]}
47. Ng5 {[%clk 0:00:42.2]} 1-0

[Event "*** SCC Grand Prix: Titled Tuesday Blitz"]
[Site "Chess.com"]
[Date "2020.06.09"]
[Round "7"]
[White "stanyga"]
[Black "BillieKimbah"]
[Result "0-1"]
[WhiteElo "2651"]
[BlackElo "2859"]
[TimeControl "180+1"]
[EndTime "10:18:50 PDT"]
[Termination "BillieKimbah won on time"]

1. e4 {[%clk 0:03:00]} 1... c5 {[%clk 0:02:58.6]} 2. Nf3 {[%clk 0:02:59.3]} 2...
e6 {[%clk 0:02:58.6]} 3. d4 {[%clk 0:02:59]} 3... cxd4 {[%clk 0:02:59.5]} 4.
Nxd4 {[%clk 0:02:59.5]} 4... Nc6 {[%clk 0:03:00.2]} 5. Nc3 {[%clk 0:02:59.6]}
5... Qc7 {[%clk 0:03:00.5]} 6. f4 {[%clk 0:02:53.4]} 6... a6 {[%clk 0:03:00.4]}
7. Nxc6 {[%clk 0:02:52.8]} 7... bxc6 {[%clk 0:03:00]} 8. Bd3 {[%clk 0:02:53.3]}
8... d5 {[%clk 0:02:59.7]} 9. O-O {[%clk 0:02:53.1]} 9... Nf6 {[%clk 0:03:00.1]}
10. Qe2 {[%clk 0:02:49.2]} 10... Be7 {[%clk 0:03:00.2]} 11. Bd2 {[%clk
0:02:49.1]} 11... O-O {[%clk 0:03:00.2]} 12. Rae1 {[%clk 0:02:48.5]} 12... g6
{[%clk 0:03:00.6]} 13. Kh1 {[%clk 0:02:41.7]} 13... Bb7 {[%clk 0:02:58.3]} 14.
e5 {[%clk 0:02:20]} 14... Ne8 {[%clk 0:02:46.6]} 15. Nd1 {[%clk 0:02:07.7]}
15... c5 {[%clk 0:02:45.6]} 16. c4 {[%clk 0:02:07.3]} 16... dxc4 {[%clk
0:02:37.4]} 17. Be4 {[%clk 0:01:51.6]} 17... Rd8 {[%clk 0:02:21.6]} 18. Bxb7
{[%clk 0:01:50.8]} 18... Qxb7 {[%clk 0:02:22.5]} 19. Bc3 {[%clk 0:01:50]} 19...
Bh4 {[%clk 0:02:10.5]} 20. Nf2 {[%clk 0:01:46.4]} 20... Bxf2 {[%clk 0:02:09.2]}
21. Rxf2 {[%clk 0:01:43.3]} 21... Rd3 {[%clk 0:02:09.6]} 22. Qg4 {[%clk
0:01:18.5]} 22... Ng7 {[%clk 0:02:04.6]} 23. Kg1 {[%clk 0:01:13.1]} 23... Rfd8
{[%clk 0:02:03.1]} 24. Rfe2 {[%clk 0:01:10.2]} 24... Qd5 {[%clk 0:02:01.8]} 25.
Re4 {[%clk 0:01:07.8]} 25... Nf5 {[%clk 0:02:00.8]} 26. Qe2 {[%clk 0:01:01.2]}
26... h5 {[%clk 0:02:00.2]} 27. Qc2 {[%clk 0:00:59.2]} 27... h4 {[%clk
0:01:58.7]} 28. Qa4 {[%clk 0:00:56.4]} 28... h3 {[%clk 0:01:35.7]} 29. Qxc4
{[%clk 0:00:55.4]} 29... Nh4 {[%clk 0:01:31.4]} 30. Qxd5 {[%clk 0:00:27.7]}
30... R8xd5 {[%clk 0:01:24.7]} 31. R4e3 {[%clk 0:00:19.6]} 31... Nxg2 {[%clk
0:01:17]} 32. Rxd3 {[%clk 0:00:18.5]} 32... Rxd3 {[%clk 0:01:17.9]} 33. Re4
{[%clk 0:00:17.8]} 33... Rf3 {[%clk 0:01:13.9]} 34. Bd2 {[%clk 0:00:09.7]} 34...
Rd3 {[%clk 0:01:13.6]} 35. Bc3 {[%clk 0:00:09.3]} 35... Nh4 {[%clk 0:01:01]} 36.
Kf2 {[%clk 0:00:07.7]} 36... Nf5 {[%clk 0:00:50.2]} 37. Ke2 {[%clk 0:00:07.6]}
37... Rg3 {[%clk 0:00:43.5]} 38. Ra4 {[%clk 0:00:02.7]} 38... Rg2+ {[%clk
0:00:43.2]} 39. Kf3 {[%clk 0:00:01.9]} 39... Nh4+ {[%clk 0:00:42.5]} 40. Ke4
{[%clk 0:00:01.2]} 40... Rxh2 {[%clk 0:00:39.1]} 0-1